bitfinex-derivatives/quotes_BNBF0:USTF0_20260221
["timestamp","ask_amount","ask_price","bid_price","bid_amount"]
[1771678980948,1.1894155,631.15,630.46,1.18502686]
[1771678982250,1.1894155,631.15,630.47,1.18502686]
[1771678982846,1.1894155,631.15,630.45,1.517]
[1771678982847,1.1894155,631.18,630.5,1.18502686]
[1771678986253,1.1894155,631.19,630.51,1.18502686]
[1771678987151,1.1894155,631.18,630.51,1.18502686]
[1771678987553,1.1894155,631.19,630.51,1.18502686]
[1771678988151,1.1894155,631.18,630.51,1.18502686]
[1771678989048,1.1894155,631.18,630.52,1.18502686]
[1771678989247,1.1894155,631.18,630.51,1.18502686]
[1771678989752,1.1894155,631.18,630.52,1.406]
[1771678989951,1.1894155,631.19,630.53,1.18502686]
[1771678991050,1.1894155,631.18,630.54,1.18502686]
[1771678991254,1.1894155,631.19,630.53,1.18502686]
[1771678992149,1.1894155,631.18,630.54,1.18502686]
[1771678993154,1.58407311,631.29,630.52,1.406]
[1771678993155,1.1894155,631.17,630.55,1.18502686]
[1771678994151,1.1894155,631.17,630.56,1.18502686]
[1771678995356,1.1894155,631.18,630.56,1.18502686]
[1771678998056,1.58407311,631.29,630.52,1.406]
[1771678998255,1.1873619,631.18,630.56,1.18339013]
[1771679009163,1.1873619,631.17,630.56,1.18339013]
[1771679010158,1.1873619,631.15,630.54,1.18339013]
[1771679011464,1.1873619,631.11,630.51,1.18339013]
[1771679011767,1.1873619,631.09,630.48,1.18339013]
[1771679012764,1.1873619,631.09,630.49,1.25]
[1771679015064,1.1873619,631.09,630.49,2.43339013]
[1771679015268,1.1873619,631.09,630.49,1.25]
[1771679016064,1.1873619,631.09,630.49,2.43339013]
[1771679017372,1.1873619,631.09,630.49,1.25]
[1771679025576,1.1873619,631.04,630.49,1.25]
[1771679026776,1.1873619,631.02,630.49,1.25]
[1771679028377,1.1873619,631.03,630.49,1.25]
[1771679031277,1.1873619,631.04,630.49,1.25]
[1771679035278,1.1873619,631.05,630.49,1.25]
[1771679047389,1.1873619,631.04,630.49,1.25]
[1771679049688,1.1873619,631.02,630.49,1.25]
[1771679050393,1.1873619,631.01,630.49,1.25]
[1771679051293,1.1873619,631.02,630.49,1.25]
[1771679051589,1.1873619,631.01,630.49,1.25]
[1771679054195,1.1873619,630.97,630.49,1.25]
[1771679056298,1.1873619,630.96,630.49,1.25]
[1771679063406,1.1873619,630.95,630.49,1.25]
[1771679063905,1.1873619,630.95,630.37,0.27580195]
[1771679066909,1.1873619,630.95,630.38,1.589]
[1771679067409,1.1873619,630.94,630.38,1.589]
[1771679069309,1.1873619,630.93,630.38,1.589]
[1771679072712,1.1873619,630.85,630.38,1.589]
[1771679073311,1.1873619,630.86,630.38,1.589]
[1771679075213,1.1873619,630.85,630.38,1.589]
[1771679076217,1.1873619,630.86,630.38,1.589]
[1771679079318,1.1873619,630.87,630.38,1.589]
[1771679088228,1.1873619,630.88,630.38,1.589]
[1771679092826,1.1873619,630.87,630.38,1.589]
[1771679101129,1.58407311,630.98,630.38,1.589]
[1771679101130,1.1873619,630.93,630.38,1.589]
[1771679102129,1.1873619,630.96,630.38,1.589]
[1771679102334,1.1873619,630.97,630.38,1.589]
[1771679103434,1.1873619,630.98,630.38,1.589]
[1771679108033,1.1873619,631.0,630.36,1.18339013]
[1771679111435,1.1873619,631.01,630.37,1.478]
[1771679114540,1.1873619,631.02,630.37,1.478]
[1771679115037,1.1873619,631.03,630.37,2.66139013]
[1771679117342,1.1873619,631.04,630.37,2.66139013]
[1771679118440,1.1873619,631.04,630.37,1.478]
[1771679135357,1.1873619,631.04,630.37,2.66139013]
[1771679136354,1.1873619,631.03,630.37,2.66139013]
[1771679137454,1.1873619,631.07,630.41,1.18339013]
[1771679139358,1.1873619,631.06,630.41,1.18339013]
[1771679140258,1.1873619,631.06,630.42,1.18339013]
[1771679142159,1.1873619,631.05,630.43,1.18339013]
[1771679143256,1.1873619,631.04,630.44,1.18339013]
[1771679143456,1.1873619,631.04,630.43,1.18339013]
[1771679144360,1.1873619,631.04,630.45,1.18339013]
[1771679146361,1.1873619,631.03,630.45,1.18339013]
[1771679160872,1.1873619,631.02,630.44,1.18339013]
[1771679161172,1.1873619,631.0,630.43,1.18339013]
[1771679161566,1.1873619,631.0,630.42,1.18339013]
[1771679161867,1.1873619,630.99,630.42,1.18339013]
[1771679167278,1.1873619,630.99,630.43,1.115]
[1771679174283,1.1873619,631.0,630.43,2.29839013]
[1771679176185,1.1873619,630.99,630.43,2.29839013]
[1771679178690,1.1873619,631.02,630.45,1.18339013]
[1771679182190,1.1873619,631.01,630.45,1.18339013]
[1771679190799,1.1873619,631.0,630.44,1.18339013]
[1771679203410,1.1873619,630.99,630.45,1.18339013]
[1771679204312,1.1873619,630.99,630.44,1.18339013]
[1771679204512,1.1873619,630.99,630.45,1.18339013]
[1771679220122,1.1873619,630.99,630.44,1.18339013]
[1771679221228,1.1873619,630.96,630.42,1.18339013]
[1771679221426,1.1873619,630.96,630.41,1.158]
[1771679221427,1.1873619,630.91,630.41,1.158]
[1771679221927,1.1873619,630.88,630.41,1.158]
[1771679222128,1.1873619,630.82,630.41,1.158]
[1771679223324,1.1873619,630.83,630.41,1.158]
[1771679224330,1.1873619,630.84,630.21,0.275943]
[1771679225331,1.1873619,630.85,630.21,0.275943]
[1771679226431,1.1873619,630.86,630.21,0.275943]
[1771679228231,1.1873619,630.87,630.21,0.275943]
[1771679230237,1.1873619,630.88,630.21,0.275943]
[1771679230437,1.1873619,630.88,630.22,1.406]
[1771679232235,1.1873619,630.89,630.22,1.406]
[1771679234437,1.1873619,630.87,630.22,1.406]
[1771679235239,1.1873619,630.88,630.22,1.406]
[1771679247349,1.1873619,630.89,630.22,1.406]
[1771679251360,1.1873619,630.88,630.22,1.406]
[1771679254261,1.1873619,630.87,630.22,1.406]
[1771679257058,1.1873619,630.88,630.22,1.406]
[1771679258262,1.1873619,630.87,630.22,1.406]
[1771679260165,1.1873619,630.86,630.22,1.406]
[1771679261268,1.1873619,630.85,630.22,1.406]
[1771679262062,1.1873619,630.87,630.22,1.406]
[1771679262262,1.1873619,630.86,630.22,2.58939013]
[1771679263366,1.1873619,630.84,630.23,1.18339013]
[1771679264167,1.1873619,630.82,630.25,1.18339013]
[1771679266468,1.1873619,630.82,630.26,1.18339013]
[1771679266768,1.1873619,630.82,630.27,1.18339013]
[1771679266963,1.1873619,630.83,630.27,1.18339013]
[1771679267265,1.1873619,630.83,630.26,1.18339013]
[1771679267671,1.1873619,630.84,630.28,1.18339013]
[1771679267967,1.1873619,630.86,630.29,1.18339013]
[1771679268970,1.1873619,630.88,630.31,1.18339013]
[1771679269168,1.1873619,630.89,630.31,1.18339013]
[1771679270272,1.1873619,630.89,630.3,1.18339013]
[1771679271274,1.1873619,630.9,630.3,1.18339013]
[1771679271673,1.1873619,630.94,630.35,1.18339013]
[1771679272273,1.1873619,630.95,630.34,1.18339013]
[1771679273176,1.1873619,630.96,630.33,1.18339013]
[1771679274776,1.1873619,630.96,630.34,1.696]
[1771679275376,2.37610967,631.19,630.34,1.696]
[1771679275377,1.1873619,630.97,630.34,1.696]
[1771679277582,1.1873619,631.03,630.38,1.18339013]
[1771679278481,1.1873619,631.04,630.37,1.18339013]
[1771679279279,1.1873619,631.05,630.37,1.18339013]
[1771679280181,1.1873619,631.06,630.38,1.18339013]
[1771679281386,1.1873619,631.07,630.37,1.18339013]
[1771679283181,1.1873619,631.07,630.34,1.696]
[1771679283182,1.1873619,631.08,630.36,1.18339013]
[1771679286287,1.1873619,631.09,630.35,1.18339013]
[1771679291193,1.1873619,631.09,630.34,2.87939013]
[1771679294496,1.1873619,631.09,630.35,1.18339013]
[1771679297699,1.1873619,631.1,630.36,1.18339013]
[1771679301202,1.1873619,631.1,630.37,1.18339013]
[1771679301703,1.1873619,631.1,630.38,1.238]
[1771679302306,1.1873619,631.09,630.38,1.238]
[1771679304208,1.1873619,631.11,630.4,1.18339013]
[1771679307205,1.1873619,631.1,630.41,1.18339013]
[1771679310311,1.1873619,631.09,630.42,1.18339013]
[1771679312211,1.1873619,631.08,630.43,1.18339013]
[1771679313413,1.1873619,631.07,630.44,1.18339013]
[1771679316216,1.1873619,631.06,630.45,1.18339013]
[1771679319418,1.1873619,631.05,630.46,1.18339013]
[1771679322322,1.1873619,631.04,630.47,1.18339013]
[1771679323023,1.1873619,631.05,630.48,1.18339013]
[1771679337238,1.1873619,631.04,630.48,1.18339013]
[1771679337433,1.1873619,631.04,630.49,1.626]
[1771679341140,1.1873619,631.04,630.49,2.80939013]
[1771679347239,1.1873619,631.03,630.49,2.80939013]
[1771679364161,1.58407311,631.14,630.49,1.626]
[1771679364361,1.18950226,631.03,630.49,2.81017093]
[1771679365158,1.18950226,631.03,630.5,1.18417093]
[1771679384574,1.18950226,631.04,630.51,1.18417093]
[1771679385377,1.18950226,631.05,630.52,1.18417093]
[1771679387274,1.18950226,631.06,630.52,1.18417093]
[1771679388578,1.18935445,631.06,630.52,1.18372905]
[1771679392272,1.18935445,631.06,630.51,1.18372905]
[1771679392675,1.18935445,631.07,630.52,1.18372905]
[1771679392874,1.18935445,631.07,630.49,1.626]
[1771679392875,1.18935445,631.09,630.54,1.18372905]
[1771679395277,1.18935445,631.1,630.54,1.18372905]
[1771679396279,1.18935445,631.1,630.53,1.18372905]
[1771679398887,1.18935445,631.22,630.65,1.18372905]
[1771679399385,1.18935445,631.23,630.63,1.18372905]
[1771679400685,1.18935445,631.24,630.64,1.18372905]
[1771679400886,1.18935445,631.24,630.64,2.32772905]
[1771679401086,1.18935445,631.21,630.64,1.144]
[1771679401287,1.18935445,631.22,630.64,1.144]
[1771679403286,1.18935445,631.23,630.64,1.144]
[1771679405289,1.18935445,631.24,630.64,1.144]
[1771679408394,1.18935445,631.25,630.64,1.144]
[1771679408695,1.18935445,631.22,630.64,1.144]
[1771679410594,1.18935445,631.23,630.64,1.144]
[1771679411394,1.18935445,631.19,630.64,1.144]
[1771679412194,1.18935445,631.2,630.64,1.144]
[1771679412390,1.18935445,631.19,630.64,1.144]
[1771679414490,1.18935445,631.2,630.64,1.144]
[1771679425300,1.18935445,631.19,630.64,1.144]
[1771679430501,1.18935445,631.18,630.64,1.144]
[1771679436304,1.18935445,631.17,630.64,1.144]
[1771679441312,1.18935445,631.16,630.64,1.144]
[1771679443114,1.18935445,631.19,630.64,1.144]
[1771679443313,1.18935445,631.18,630.64,1.144]
[1771679447217,1.18935445,631.17,630.64,1.144]
[1771679447517,1.18935445,631.16,630.64,1.144]
[1771679449012,1.18935445,631.14,630.64,1.144]
[1771679449219,1.18935445,631.11,630.64,1.144]
[1771679449712,1.18935445,631.09,630.64,1.144]
[1771679454620,1.18935445,631.04,630.64,1.144]
[1771679454817,1.18935445,631.03,630.64,1.144]
[1771679455020,0.27582271,631.46,630.64,1.144]
[1771679455021,1.18935445,631.01,630.64,1.144]
[1771679455321,1.18935445,631.02,630.64,1.144]
[1771679456923,1.18935445,631.02,630.42,1.18372905]
[1771679457323,1.18935445,631.03,630.41,1.18372905]
[1771679459423,1.18935445,631.04,630.4,1.18372905]
[1771679460319,1.18935445,631.04,630.41,1.652]
[1771679462221,1.18935445,631.05,630.41,1.652]
[1771679466324,1.18935445,631.06,630.41,1.652]
[1771679468028,0.27582271,631.46,630.45,1.18372905]
[1771679468029,1.18935445,631.13,630.45,1.18372905]
[1771679472331,1.18935445,631.12,630.45,1.18372905]
[1771679472531,1.58407311,631.24,630.41,1.652]
[1771679472733,1.18629094,631.12,630.45,1.18203211]
[1771679476336,1.18629094,631.11,630.45,1.18203211]
[1771679484248,1.18629094,631.11,630.46,1.18203211]
[1771679484545,1.18629094,631.11,630.46,2.40903211]
[1771679486345,1.18629094,631.1,630.46,2.40903211]
[1771679489349,1.18629094,631.1,630.47,1.18203211]
[1771679489654,1.18629094,631.09,630.46,2.40903211]
[1771679489850,1.18629094,631.08,630.46,1.227]
[1771679491350,1.18629094,631.07,630.46,2.40903211]
[1771679494355,1.18629094,631.07,630.47,1.18203211]
[1771679497356,1.18629094,631.06,630.47,1.18203211]
[1771679504465,1.18629094,631.06,630.48,1.18203211]
[1771679507465,1.18629094,631.05,630.48,1.18203211]
[1771679510275,1.18629094,631.05,630.49,1.18203211]
[1771679511273,1.18629094,631.04,630.49,1.18203211]
[1771679516474,1.18629094,631.04,630.5,1.18203211]
[1771679517678,1.18629094,631.03,630.49,1.18203211]
[1771679519074,1.18629094,631.0,630.46,2.40903211]
[1771679519274,1.18629094,631.0,630.46,1.227]
[1771679519875,1.18629094,630.98,630.46,1.227]
[1771679520174,1.18629094,630.95,630.46,1.227]
[1771679521478,1.18629094,630.96,630.46,1.227]
[1771679521778,1.18629094,630.94,630.46,1.227]
[1771679521978,1.58407311,631.06,630.46,1.227]
[1771679521979,1.18629094,630.84,630.46,1.227]
[1771679522179,1.18629094,630.86,630.46,1.227]
[1771679523177,2.37610967,631.09,630.46,1.227]
[1771679523178,1.18629094,630.88,630.46,1.227]
[1771679524274,1.18629094,630.89,630.46,1.227]
[1771679525280,1.18629094,630.9,630.46,1.227]
[1771679527179,1.18629094,630.91,630.46,1.227]
[1771679529184,1.18629094,630.92,630.46,1.227]
[1771679531280,1.18629094,630.93,630.46,1.227]
[1771679534183,1.18629094,630.94,630.46,1.227]
[1771679534785,1.18629094,630.93,630.46,1.227]
[1771679536489,1.18629094,630.93,630.37,0.2757932]
[1771679537085,1.18629094,630.92,630.37,0.2757932]
[1771679539190,1.18629094,630.93,630.37,0.2757932]
[1771679548400,1.18629094,630.92,630.37,0.2757932]
[1771679553499,1.18629094,630.91,630.37,0.2757932]
[1771679556201,1.18629094,630.9,630.37,0.2757932]
[1771679558102,1.18629094,630.9,630.35,1.56]
[1771679558405,1.18629094,630.89,630.35,1.56]
[1771679559402,1.18629094,630.88,630.35,1.56]
[1771679561204,1.18629094,630.87,630.35,1.56]
[1771679562303,1.18629094,630.85,630.35,1.56]
[1771679563401,1.18629094,630.84,630.35,1.56]
[1771679564306,1.18629094,630.82,630.35,1.56]
[1771679564602,1.18629094,630.83,630.35,1.56]
[1771679566108,1.18629094,630.82,630.35,1.56]
[1771679566405,1.18629094,630.81,630.35,1.56]
[1771679573113,1.18629094,630.8,630.35,1.56]
[1771679581025,1.58407311,630.92,630.35,1.56]
[1771679581325,1.18993547,630.8,630.35,1.56]
[1771679594128,1.18993547,630.8,630.28,1.18623104]
[1771679594728,1.18993547,630.88,630.35,1.18623104]
[1771679595428,1.18993547,630.89,630.34,1.18623104]
[1771679596131,1.18993547,630.82,630.27,1.18623104]
[1771679600931,1.18993547,630.81,630.26,1.46216748]
[1771679601134,1.18993547,630.78,630.26,0.27593644]
[1771679602033,1.18993547,630.77,630.26,0.27593644]
[1771679603235,1.18993547,630.78,630.26,0.27593644]
[1771679614842,1.18993547,630.75,630.26,0.27593644]
[1771679615345,1.18993547,630.76,630.26,0.27593644]
[1771679615565,1.18993547,630.7,630.26,0.27593644]
[1771679615741,1.18993547,630.7,630.22,1.684]
[1771679616345,1.18993547,630.71,630.22,1.684]
[1771679618248,1.18993547,630.72,630.22,1.684]
[1771679618850,1.18993547,630.71,630.22,1.684]
[1771679619350,1.18993547,630.7,630.22,1.684]
[1771679620353,1.18993547,630.71,630.22,1.684]
[1771679623353,1.18993547,630.72,630.22,1.684]
[1771679630566,1.18993547,630.76,630.22,1.684]
[1771679637170,1.18993547,630.77,630.22,1.684]
[1771679637368,1.18993547,630.79,630.22,1.684]
[1771679640273,1.18993547,630.79,630.18,0.27599005]
[1771679640470,1.18993547,630.88,630.23,1.18623104]
[1771679642271,1.18993547,630.88,630.22,1.18623104]
[1771679643175,1.18993547,630.88,630.23,1.224]
[1771679643378,1.18993547,630.89,630.23,1.224]
[1771679647882,1.18993547,630.95,630.28,1.18623104]
[1771679648177,1.18993547,630.95,630.23,1.224]
[1771679648178,1.18993547,630.96,630.27,1.18623104]
[1771679650177,1.18993547,630.97,630.27,1.18623104]
[1771679650377,1.18993547,630.97,630.26,1.18623104]
[1771679651783,1.18993547,631.02,630.3,1.18623104]
[1771679652379,2.37610967,631.25,630.3,1.18623104]
[1771679652380,1.18993547,631.03,630.3,1.18623104]
[1771679653179,1.18993547,631.03,630.29,1.18623104]
[1771679654179,1.18993547,631.04,630.29,1.18623104]
[1771679654381,1.18993547,631.06,630.31,1.18623104]
[1771679654581,1.18993547,631.07,630.31,1.18623104]
[1771679654980,1.18993547,631.08,630.32,1.18623104]
[1771679655184,1.18993547,631.15,630.38,1.18623104]
[1771679655685,1.18993547,631.15,630.35,1.18623104]
[1771679655997,1.18993547,631.12,630.35,1.18623104]
[1771679656185,1.18993547,631.13,630.34,1.18623104]
[1771679656683,1.18993547,631.11,630.32,1.18623104]
[1771679656886,1.18993547,631.1,630.31,1.18623104]
[1771679657182,1.18993547,631.11,630.31,1.18623104]
[1771679658282,1.18993547,631.11,630.3,1.18623104]
[1771679659285,1.18993547,631.12,630.29,1.18623104]
[1771679661283,1.18993547,631.17,630.33,1.18623104]
[1771679662185,1.18993547,631.18,630.33,1.18623104]
[1771679663182,1.18993547,631.18,630.32,1.18623104]
[1771679664384,1.18993547,631.21,630.35,1.18623104]
[1771679665183,1.18993547,631.21,630.34,1.18623104]
[1771679665687,1.18993547,631.24,630.37,1.18623104]
[1771679666187,1.18993547,631.26,630.38,1.18623104]
[1771679667191,1.18993547,631.26,630.37,1.18623104]
[1771679668187,1.18993547,631.27,630.37,1.18623104]
[1771679668388,1.18993547,631.26,630.37,1.18623104]
[1771679669190,0.2758413,631.41,630.42,1.18623104]
[1771679669191,1.18993547,631.33,630.42,1.18623104]
[1771679669391,1.18993547,631.33,630.43,1.18623104]
[1771679670189,1.18993547,631.34,630.42,1.18623104]
[1771679670388,0.2758413,631.41,630.42,1.18623104]
[1771679670389,1.18993547,631.33,630.42,1.18623104]
[1771679671292,1.18993547,631.34,630.42,1.18623104]
[1771679671489,1.18993547,631.3,630.38,1.18623104]
[1771679674392,1.18993547,631.29,630.38,1.18623104]
[1771679675196,1.18993547,631.3,630.38,1.18623104]
[1771679675397,1.18993547,631.29,630.39,1.18623104]
[1771679675896,1.18993547,631.29,630.27,1.57895321]
[1771679675897,1.18993547,631.31,630.4,1.18623104]
[1771679676396,1.18993547,631.3,630.4,1.18623104]
[1771679677193,1.18993547,631.31,630.4,1.18623104]
[1771679677393,1.18993547,631.3,630.41,1.18623104]
[1771679678597,1.18993547,631.31,630.42,1.18623104]
[1771679679194,1.18993547,631.32,630.42,1.18623104]
[1771679679394,1.18993547,631.31,630.43,1.18623104]
[1771679681200,1.18993547,631.3,630.44,1.18623104]
[1771679681797,1.85991441,631.41,630.23,1.224]
[1771679681798,1.18993547,631.32,630.45,1.18623104]
[1771679682400,1.18993547,631.31,630.46,1.18623104]
[1771679683402,1.18993547,631.28,630.43,1.18623104]
[1771679683602,1.18227761,631.28,630.43,1.17682559]
[1771679684402,1.18227761,631.27,630.44,1.17682559]
[1771679684899,1.18227761,631.28,630.46,1.17682559]
[1771679685099,1.18227761,631.3,630.47,1.17682559]
[1771679687105,1.18227761,631.29,630.48,1.17682559]
[1771679688802,0.2758413,631.41,630.47,1.17682559]
[1771679688803,1.18227761,631.27,630.47,1.17682559]
[1771679689101,1.18227761,631.27,630.46,1.17682559]
[1771679689306,1.18227761,631.27,630.47,1.17682559]
[1771679690103,1.18227761,631.26,630.48,1.17682559]
[1771679690508,1.18227761,631.27,630.48,1.17682559]
[1771679691208,1.18227761,631.27,630.49,1.17682559]
[1771679692108,1.18227761,631.26,630.5,1.17682559]
[1771679693207,1.18227761,631.25,630.5,1.17682559]
[1771679694217,1.18227761,631.25,630.39,1.57895321]
[1771679694218,1.18227761,631.25,630.51,1.17682559]
[1771679695107,1.18227761,631.24,630.51,1.17682559]
[1771679695407,1.18227761,631.27,630.54,1.17682559]
[1771679696310,1.18227761,631.27,630.55,2.85482559]
[1771679697209,1.18227761,631.26,630.55,2.85482559]
[1771679698206,1.18227761,631.26,630.56,1.17682559]
[1771679700009,1.18227761,631.26,630.56,1.18006504]
[1771679700010,1.18566022,631.26,630.56,1.18006504]
[1771679700210,1.18566022,631.25,630.57,1.18006504]
[1771679703208,1.18566022,631.24,630.58,1.18006504]
[1771679705214,1.18566022,631.23,630.59,1.18006504]
[1771679706210,1.18566022,631.22,630.59,1.18006504]
[1771679707312,1.18566022,631.22,630.6,1.18006504]
[1771679708214,1.18566022,631.21,630.6,1.18006504]
[1771679709414,1.18566022,631.21,630.61,1.18006504]
[1771679709618,1.18566022,631.22,630.63,1.18006504]
[1771679713420,1.18566022,631.21,630.63,1.18006504]
[1771679714220,1.18566022,631.22,630.63,1.18006504]
[1771679714827,1.18566022,631.22,630.64,1.18006504]
[1771679720327,1.18566022,631.26,630.68,1.18006504]
[1771679721327,2.37610967,631.48,630.56,1.57895321]
[1771679721328,1.18566022,631.25,630.67,1.18006504]
[1771679724330,1.18566022,631.25,630.66,1.18006504]
[1771679725527,1.18566022,631.26,630.66,1.18006504]
[1771679726228,1.18566022,631.25,630.66,1.18006504]
[1771679726431,1.18566022,631.25,630.55,1.678]
[1771679726432,1.18566022,631.22,630.63,1.18006504]
[1771679730834,1.18566022,631.22,630.64,1.781]
[1771679735238,1.18566022,631.21,630.64,1.781]
[1771679739245,1.18566022,631.21,630.64,2.96106504]
[1771679740245,1.18566022,631.2,630.64,2.96106504]
[1771679741443,1.18566022,631.18,630.64,1.781]
[1771679745348,1.18566022,631.17,630.64,1.781]
[1771679745548,1.18566022,631.13,630.64,1.781]
[1771679746345,1.18566022,631.14,630.64,1.781]
[1771679747346,1.18566022,631.15,630.64,1.781]
[1771679750251,1.18566022,631.16,630.64,1.781]
[1771679758257,1.18566022,631.17,630.64,1.781]
[1771679764558,1.18566022,631.18,630.64,1.781]
[1771679766863,1.18566022,631.17,630.64,1.781]
[1771679767068,1.18566022,631.09,630.64,1.781]
[1771679767263,1.18566022,631.1,630.64,1.781]
[1771679769062,1.18566022,631.02,630.64,1.781]
[1771679769263,1.18566022,631.03,630.64,1.781]
[1771679769666,1.18566022,631.02,630.64,1.781]
[1771679770264,1.18566022,631.03,630.64,1.781]
[1771679772266,1.18566022,631.04,630.64,1.781]
[1771679774272,1.18566022,631.05,630.64,1.781]
[1771679774968,1.18566022,631.04,630.64,1.781]
[1771679775669,1.18566022,630.98,630.64,1.781]
[1771679777167,1.18566022,630.99,630.64,1.781]
[1771679777573,1.18566022,630.98,630.64,1.781]
[1771679777772,1.18566022,630.97,630.64,1.781]
[1771679778074,1.18566022,630.96,630.64,1.781]
[1771679778575,1.18566022,630.94,630.64,1.781]
[1771679778775,1.18566022,630.93,630.64,1.781]
[1771679778977,1.18566022,630.93,630.18,1.45605509]
[1771679779278,1.18566022,630.93,630.18,0.27599005]
[1771679779573,1.18566022,630.88,630.18,0.27599005]
[1771679780377,1.18566022,630.84,630.18,0.27599005]
[1771679781277,1.18566022,630.85,630.18,0.27599005]
[1771679782875,1.18566022,630.85,630.19,1.617]
[1771679783379,1.18566022,630.86,630.19,1.617]
[1771679784379,1.18566022,630.87,630.19,1.617]
[1771679785480,1.18566022,630.88,630.19,1.617]
[1771679787278,1.18566022,630.89,630.19,1.617]
[1771679788579,1.18566022,630.9,630.19,1.617]
[1771679788980,1.18566022,630.95,630.19,1.617]
[1771679792185,1.18566022,630.96,630.19,1.617]
[1771679792883,1.18566022,631.01,630.19,1.617]
[1771679796085,1.18566022,631.05,630.19,1.617]
[1771679796489,1.18566022,631.06,630.19,1.617]
[1771679799388,1.18566022,631.05,630.19,1.617]
[1771679800491,1.18566022,631.06,630.19,1.617]
[1771679801290,1.18566022,631.05,630.19,1.617]
[1771679803192,1.18566022,631.04,630.19,1.617]
[1771679804693,1.18566022,631.04,630.16,1.18006504]
[1771679804993,1.18566022,631.03,630.16,1.18006504]
[1771679806292,1.18566022,631.03,630.17,1.18006504]
[1771679806493,1.18566022,631.07,630.21,1.18006504]
[1771679806989,1.18566022,631.07,629.99,2.36842982]
[1771679806990,1.18566022,631.08,630.23,1.18006504]
[1771679808291,1.18566022,631.07,630.24,1.18006504]
[1771679808688,1.18566022,631.07,630.25,1.329]
[1771679809289,1.18566022,631.07,630.25,2.50906504]
[1771679810392,1.18566022,631.06,630.25,2.50906504]
[1771679811191,1.18566022,631.05,630.26,1.18006504]
[1771679812389,1.18566022,631.04,630.27,1.18006504]
[1771679812589,1.18566022,631.0,630.25,1.60489925]
[1771679814395,1.18566022,630.99,630.25,1.60489925]
[1771679816494,1.18566022,630.98,630.25,1.60489925]
[1771679821395,1.58407311,631.09,630.25,1.60489925]
[1771679821599,1.18507698,630.99,630.25,2.78413975]
[1771679824395,0.27589925,631.27,630.25,2.78413975]
[1771679824396,1.18507698,631.01,630.27,1.1792405]
[1771679824603,1.18507698,631.03,630.29,1.1792405]
[1771679825998,1.18507698,631.07,630.33,1.1792405]
[1771679827201,1.18507698,631.08,630.33,1.1792405]
[1771679827399,1.18507698,631.07,630.34,1.1792405]
[1771679828504,1.18507698,631.14,630.41,1.1792405]
[1771679829602,1.18507698,631.15,630.42,1.1792405]
[1771679830103,1.18507698,631.17,630.43,1.1792405]
[1771679830506,1.18507698,631.18,630.44,1.1792405]
[1771679831307,1.18507698,631.19,630.44,1.1792405]
[1771679833206,1.18507698,631.18,630.44,1.1792405]
[1771679834309,1.18507698,631.19,630.44,1.1792405]
[1771679835010,1.18507698,631.2,630.45,1.1792405]
[1771679841012,1.18507698,631.25,630.5,1.1792405]
[1771679841213,1.18507698,631.26,630.5,1.1792405]
[1771679842217,1.18507698,631.26,630.49,1.1792405]
[1771679844419,1.18507698,631.27,630.49,1.1792405]
[1771679845420,1.58407311,631.38,630.37,1.57895321]
[1771679845621,1.18366071,631.27,630.49,1.17723404]
[1771679846216,1.18366071,631.27,630.48,1.17723404]
[1771679846822,1.18366071,631.27,630.49,1.313]
[1771679853326,1.18366071,631.28,630.49,1.313]
[1771679858230,1.58407311,631.39,630.49,1.313]
[1771679858231,1.18366071,631.27,630.49,1.313]
[1771679859234,1.18366071,631.27,630.49,2.49023404]
[1771679861432,1.18366071,631.26,630.49,2.49023404]
[1771679862235,1.18366071,631.26,630.5,1.17723404]
[1771679862537,1.18366071,631.26,630.49,1.313]
[1771679862538,1.18366071,631.32,630.56,1.17723404]
[1771679864337,1.18366071,631.31,630.57,1.17723404]
[1771679867239,1.18366071,631.3,630.58,1.17723404]
[1771679868335,1.18366071,631.29,630.58,1.17723404]
[1771679869038,1.18366071,631.29,630.59,1.17723404]
[1771679869735,1.18366071,631.3,630.61,1.17723404]
[1771679870339,1.18366071,631.29,630.61,1.17723404]
[1771679871243,1.18366071,631.29,630.62,1.17723404]
[1771679872240,1.18366071,631.28,630.62,1.17723404]
[1771679873241,1.18366071,631.27,630.62,1.17723404]
[1771679873442,1.18366071,631.25,630.61,1.17723404]
[1771679876445,1.18366071,631.2,630.56,1.17723404]
[1771679877245,1.18366071,631.2,630.57,1.17723404]
[1771679883344,1.18366071,631.19,630.58,1.17723404]
[1771679890748,1.18366071,631.19,630.59,1.135]